fUSD/lending_fUSD_20250923
["ID","MTS","AMOUNT","RATE_DAILY","PERIOD"]
[387223789,1758661834770,-520.94122628,0.00023153,2]
[387223790,1758661834783,-1743.33194775,0.00023153,2]
[387223791,1758661837325,1497.710366,0.00018475,2]
[387223792,1758661837640,1497.710366,0.00018233,2]
[387223793,1758661837745,1497.710366,0.00017999,2]
[387223794,1758661837859,1497.710366,0.00017997,2]
[387223795,1758661838036,1497.710366,0.00017996,2]
[387223796,1758661838057,-1497.710366,0.00018729,2]
[387223797,1758661838067,-380.06589513,0.00023153,2]
[387223798,1758661838079,-4059.90596961,0.00023153,2]
[387223799,1758661838089,-646.65982734,0.00023153,2]
[387223800,1758661838098,-500.0,0.00023153,2]
[387223801,1758661838107,-500.0,0.00023153,2]
[387223802,1758661838117,-500.0,0.00023153,2]
[387223803,1758661838127,-510.28852536,0.00023153,2]
[387223804,1758661838136,-151.0,0.00023153,2]
[387223805,1758661838145,-151.0,0.00023153,2]
[387223806,1758661838155,-151.0,0.00023153,2]
[387223807,1758661838164,-151.0,0.00023153,2]
[387223808,1758661838173,-151.0,0.00023153,2]
[387223809,1758661838183,-151.0,0.00023153,2]
[387223810,1758661838192,-151.0,0.00023153,2]
[387223811,1758661838202,-151.0,0.00023153,2]
[387223812,1758661838211,-151.0,0.00023153,2]
[387223813,1758661838221,-151.0,0.00023153,2]
[387223814,1758661838230,-151.0,0.00023153,2]
[387223815,1758661838240,-270.40066256,0.00023153,2]
[387223816,1758661838249,-151.0,0.00023179,7]
[387223817,1758661838259,-151.0,0.00023179,7]
[387223818,1758661838268,-31800.18901513,0.0002318,2]
[387223819,1758661838279,-8355.461751,0.0002318,2]
[387223820,1758661838291,-36008.590824,0.0002318,2]
[387223839,1758661838538,-166.006144,0.00018729,2]
[387223841,1758661838548,-166.400868,0.00018729,2]
[387223843,1758661838558,-41540.88554427,0.0002318,2]
[387223845,1758661838567,-3021.5739421,0.0002318,2]
[387223847,1758661838579,-634981.6663487,0.00023182,2]
[387223849,1758661838589,-500.0,0.00023182,5]
[387223851,1758661838598,-303.6707652,0.00023182,2]
[387223853,1758661838608,-6731.2085837,0.00023182,2]
[387223855,1758661838618,-1704.3681144,0.00023182,2]
[387223856,1758661838628,-500.0,0.00023182,5]
[387223857,1758661838638,-1107.9884581,0.00023182,2]
[387223858,1758661838647,-15669.7227717,0.00023182,2]
[387223859,1758661838658,-3081.2868868,0.00023182,2]
[387223860,1758661838669,-400.0,0.00023182,5]
[387223861,1758661838679,-255.0,0.00023189,2]
[387223862,1758661838688,-157.06316609,0.0002319,2]
[387223863,1758661838698,-1599.41,0.000232,2]
[387223864,1758661838708,-233.67001562,0.000232,2]
[387223865,1758661838717,-500.0,0.000232,2]
[387223866,1758661838727,-283.13465826,0.00023204,7]
[387223867,1758661838737,-8882.6885148,0.00023208,2]
[387223868,1758661838747,-158.4,0.00023218,2]
[387223869,1758661838756,-150.0,0.00023245,4]
[387223870,1758661838766,-466.68663118,0.00023253,2]
[387223871,1758661838775,-9211.34798985,0.00023263,2]
[387223872,1758661838785,-4106.25973638,0.00023263,2]
[387223873,1758661838795,-4038.99533054,0.00023273,2]
[387223874,1758661838805,-5262.83,0.00023287,2]
[387223875,1758661838814,-150.0,0.00023316,2]
[387223876,1758661838824,-9552.16786547,0.00023318,2]
[387223877,1758661838834,-10000.0,0.00023353,2]
[387223878,1758661838844,-5000.0,0.00023353,2]
[387223879,1758661838853,-9905.5980765,0.00023373,2]
[387223880,1758661838863,-150.0,0.00023399,4]
[387223881,1758661838873,-150.0,0.00023399,4]
[387223882,1758661838883,-150.0,0.00023399,4]
[387223883,1758661838892,-150.0,0.00023399,4]
[387223884,1758661838902,-150.0,0.00023399,4]
[387223885,1758661838912,-150.0,0.00023399,4]
[387223886,1758661838922,-150.0,0.00023399,4]
[387223887,1758661838931,-150.0,0.00023399,4]
[387223888,1758661838941,-150.0,0.00023399,4]
[387223889,1758661838950,-878.92423785,0.00023428,2]
[387223890,1758661838960,-684.44927122,0.00023448,2]
[387223891,1758661838970,-500.0,0.00023456,5]
[387223892,1758661838980,-500.0,0.00023456,5]
[387223893,1758661838989,-4038.99533054,0.00023464,2]
[387223894,1758661838999,-150.0,0.00023553,4]
[387223895,1758661839009,-1301.28,0.00023559,2]
[387223896,1758661839018,-1262.0,0.00023561,2]
[387223897,1758661839027,-226.0,0.00023561,2]
[387223898,1758661839037,-3394.0,0.00023561,2]
[387223899,1758661839046,-4106.25973638,0.00023577,2]
[387223900,1758661839056,-163.48,0.000236,2]
[387223901,1758661839066,-150.0,0.00023645,4]
[387223902,1758661839076,-150.0,0.00023645,4]
[387223903,1758661839085,-150.0,0.00023645,4]
[387223904,1758661839095,-4038.99533054,0.00023655,2]
[387223905,1758661839105,-151.0,0.00023701,2]
[387223906,1758661839115,-151.0,0.00023701,2]
[387223907,1758661839124,-151.0,0.00023701,2]
[387223908,1758661839133,-150.0,0.00023707,4]
[387223909,1758661839143,-150.0,0.00023707,4]
[387223910,1758661839153,-150.0,0.00023707,4]
[387223911,1758661839162,-371.18988848,0.0002372,2]
[387223912,1758661839173,-180.69552882,0.00023726,2]
[387223913,1758661839182,-500.0,0.0002373,5]
[387223914,1758661839191,-500.0,0.0002373,5]
[387223915,1758661839201,-2005.4484898,0.00023737,2]
[387223916,1758661839212,-1000.0,0.00023799,2]
[387223917,1758661839222,-7000.0,0.000238,2]
[387223918,1758661839231,-150.0,0.00023809,4]
[387223919,1758661839243,-150.0,0.00023809,4]
[387223920,1758661839255,-150.0,0.00023809,4]
[387223921,1758661839266,-150.0,0.00023809,4]
[387223922,1758661839279,-684.44927122,0.00023816,2]
[387223923,1758661839289,-150.0,0.00023834,2]
[387223924,1758661839302,-4038.99533054,0.00023846,2]
[387223925,1758661839312,-150.0,0.0002386,4]
[387223926,1758661839322,-198.77,0.00023874,2]
[387223927,1758661839333,-169.36,0.0002388,2]
[387223928,1758661839343,-4106.25973638,0.0002389,2]
[387223929,1758661839354,-150.0,0.00023891,4]
[387223930,1758661839365,-894.0,0.000239,2]
[387223931,1758661839374,-1400.0,0.000239,8]
[387223932,1758661839383,-2527.92838,0.0002392,2]
[387223933,1758661839393,-500.0,0.00024004,5]
[387223934,1758661839403,-500.0,0.00024004,5]
[387223935,1758661839508,-150.0,0.00024014,4]
[387223936,1758661839518,-150.0,0.00024014,4]
[387223937,1758661839527,-150.0,0.00024014,4]
[387223938,1758661839537,-940.0,0.00024027,2]
[387223939,1758661839546,-4038.99533054,0.00024036,2]
[387223940,1758661839555,-671.0,0.00024074,2]
[387223941,1758661839565,-671.0,0.00024092,2]
[387223942,1758661839576,-1000.0,0.000241,2]
[387223943,1758661839587,-2786.0844,0.00024103,2]
[387223944,1758661839596,-150.0,0.00024138,4]
[387223945,1758661839606,-150.0,0.00024138,4]
[387223946,1758661839615,-150.0,0.00024138,4]
[387223947,1758661839626,-150.0,0.00024168,4]
[387223948,1758661839635,-684.44927122,0.00024183,2]
[387223949,1758661839644,-1000.0,0.00024203,2]
[387223950,1758661839654,-4106.25973638,0.00024203,2]
[387223951,1758661839664,-150.0,0.0002422,4]
[387223952,1758661839673,-150.0,0.0002422,4]
[387223953,1758661839685,-150.0,0.0002422,4]
[387223954,1758661839694,-4038.99533054,0.00024227,2]
[387223955,1758661839704,-1425.0,0.00024259,2]
[387223956,1758661839713,-1425.0,0.0002426,2]
[387223957,1758661839723,-161.23326324,0.00024268,2]
[387223958,1758661839733,-200.0,0.00024269,2]
[387223959,1758661839742,-1709.99690285,0.00024271,2]
[387223960,1758661839751,-500.0,0.00024278,5]
[387223961,1758661839760,-200.0,0.00024278,5]
[387223962,1758661839770,-671.0,0.00024295,2]
[387223963,1758661839779,-940.0,0.00024299,2]
[387223964,1758661839789,-14443.66864691,0.00024311,2]
[387223965,1758661839798,-632.46640974,0.00024312,2]
[387223966,1758661839809,-8633.73327099,0.00024312,2]
[387223967,1758661839818,-632.46640974,0.00024313,2]
[387223968,1758661839828,-40614.2746017,0.00024313,2]
[387223969,1758661839837,-126500.02216212,0.00024314,2]
[387223970,1758661839846,-14443.66864691,0.00024315,2]
[387223971,1758661839856,-9264.77695865,0.00024315,2]
[387223972,1758661839865,-9034.37774183,0.00024322,2]
[387223973,1758661839876,-150.0,0.00024322,4]
[387223974,1758661839885,-150.0,0.00024322,4]
[387223975,1758661839895,-150.0,0.00024322,4]
[387223976,1758661839904,-9264.77695865,0.00024322,2]
[387223977,1758661839914,-158.4,0.00024324,2]
[387223978,1758661839923,-976.23830396,0.0002433,2]
[387223979,1758661839933,-9264.77695865,0.00024331,2]
[387223980,1758661839942,-182.34047603,0.00024332,2]
[387223981,1758661839951,-3817.312,0.00024333,6]
[387223982,1758661839961,-453.2174066,0.00024334,2]
[387223983,1758661839970,-1581.16602432,0.00024336,2]
[387223984,1758661839980,-453.2174066,0.00024337,2]
[387223985,1758661839989,-632.46640974,0.00024343,2]
[387223986,1758661839999,-8633.73327099,0.00024344,2]
[387223987,1758661840008,-40614.2746017,0.00024345,2]
[387223988,1758661840018,-1581.16602432,0.00024345,2]
[387223989,1758661840027,-14443.66864691,0.00024348,2]
[387223990,1758661840037,-198.77,0.00024349,2]
[387223991,1758661840046,-1000.0,0.0002435,2]
[387223992,1758661840055,-1000.0,0.0002435,2]
[387223993,1758661840065,-1000.0,0.0002435,2]
[387223994,1758661840074,-1000.0,0.0002435,2]
[387223995,1758661840083,-1000.5097,0.0002435,2]
[387223996,1758661840093,-1000.0,0.0002435,2]
[387223997,1758661840102,-1624.85668482,0.0002435,2]
[387223998,1758661840112,-976.23830396,0.0002435,2]
[387223999,1758661840123,-126500.02216212,0.00024351,2]
[387224000,1758661840133,-14443.66864691,0.00024351,2]
[387224001,1758661840142,-18671.3709135,0.00024352,2]
[387224002,1758661840152,-371.18988848,0.00024357,2]
[387224003,1758661840161,-182.34047603,0.00024361,2]
[387224004,1758661840171,-1581.16602432,0.00024361,2]
[387224005,1758661840180,-18671.3709135,0.00024362,2]
[387224006,1758661840190,-8633.73327099,0.00024363,2]
[387224007,1758661840200,-40614.2746017,0.00024364,2]
[387224008,1758661840210,-4000.0,0.00024365,2]
[387224009,1758661840219,-4656.06,0.00024365,2]
[387224011,1758661840229,-672.45447389,0.00024365,2]
[387224013,1758661840238,-182.34047603,0.00024365,2]
[387224015,1758661840248,-5000.0,0.00024367,2]
[387224016,1758661840258,-225.0,0.00024368,2]
[387224018,1758661840268,-5000.0,0.00024369,2]
[387224021,1758661840278,-2059.0,0.00024371,2]
[387224023,1758661840288,-5000.0,0.00024371,2]
[387224025,1758661840298,-8633.73327099,0.00024371,2]
[387224026,1758661840307,-5000.0,0.00024373,2]
[387224029,1758661840317,-9034.37774183,0.00024374,2]
[387224030,1758661840327,-5000.0,0.00024375,3]
[387224032,1758661840336,-9034.37774183,0.00024375,2]
[387224035,1758661840346,-40614.2746017,0.00024376,2]
[387224036,1758661840355,-9034.37774183,0.00024376,2]
[387224038,1758661840364,-5000.0,0.00024377,3]
[387224040,1758661840373,-516.64379166,0.00024377,3]
[387224042,1758661840383,-182.34047603,0.00024378,2]
[387224044,1758661840392,-1000.0,0.00024378,2]
[387224046,1758661840402,-5000.0,0.00024379,3]
[387224048,1758661840413,-126500.02216212,0.0002438,2]
[387224050,1758661840423,-1581.16602432,0.00024383,2]
[387224053,1758661840434,-150.0,0.00024384,4]
[387224055,1758661840443,-40614.2746017,0.00024387,2]
[387224057,1758661840453,-1581.16602432,0.00024388,2]
[387224059,1758661840462,-976.23830396,0.00024389,2]
[387224061,1758661840472,-8633.73327099,0.00024391,2]
[387224063,1758661840481,-40614.2746017,0.00024394,2]
[387224065,1758661840491,-671.0,0.00024395,2]
[387224067,1758661840501,-9034.37774183,0.00024395,2]
[387224069,1758661840510,-453.2174066,0.00024401,2]
[387224071,1758661840520,-18671.3709135,0.00024404,2]
[387224073,1758661840529,-126500.02216212,0.00024404,2]
[387224075,1758661840539,-18671.3709135,0.00024412,2]
[387224077,1758661840548,-453.2174066,0.00024412,2]
[387224079,1758661840557,-14443.66864691,0.00024416,2]
[387224081,1758661840567,-8633.73327099,0.00024417,2]
[387224083,1758661840580,-4038.99533054,0.00024418,2]
[387224085,1758661840590,-976.23830396,0.00024425,2]
[387224087,1758661840599,-18671.3709135,0.00024427,2]
[387224089,1758661840609,-632.46640974,0.00024428,2]
[387224091,1758661840620,-453.2174066,0.00024429,2]
[387224093,1758661840630,-182.34047603,0.00024432,2]
[387224095,1758661840639,-500.0,0.00024433,2]
[387224097,1758661840649,-8633.73327099,0.00024433,2]
[387224099,1758661840659,-9034.37774183,0.00024436,2]
[387224101,1758661840669,-126500.02216212,0.00024444,2]
[387224103,1758661840678,-40614.2746017,0.00024445,2]
[387224105,1758661840688,-152.39,0.00024447,2]
[387224107,1758661840699,-195.26106092,0.00024449,2]
[387224109,1758661840708,-18671.3709135,0.00024449,2]
[387224111,1758661840717,-976.23830396,0.0002445,2]
[387224113,1758661840727,-1581.16602432,0.00024452,2]
[387224115,1758661840737,-632.46640974,0.00024453,2]
[387224118,1758661840747,-324186.98841645,0.00024457,2]
[387224119,1758661840756,-4570.25579671,0.00024457,2]
[387224121,1758661840766,-1228.0,0.00024457,2]
[387224124,1758661840775,-151.0,0.00024457,2]
[387224125,1758661840786,-151.0,0.00024457,2]
[387224127,1758661840797,-817.0,0.00024457,2]
[387224130,1758661840806,-151.0,0.00024457,2]
[387224132,1758661840815,-817.0,0.00024457,2]
[387224133,1758661840826,-151.0,0.00024457,2]
[387224136,1758661840835,-817.0,0.00024457,2]
[387224138,1758661840845,-151.0,0.00024457,2]
[387224140,1758661840854,-151.0,0.00024457,2]
[387224142,1758661840865,-151.0,0.00024457,2]
[387224144,1758661840874,-817.0,0.00024457,2]
[387224146,1758661840884,-151.0,0.00024457,2]
[387224148,1758661840894,-547.0,0.00024457,2]
[387224150,1758661840903,-151.0,0.00024457,2]
[387224152,1758661840912,-151.0,0.00024457,2]
[387224154,1758661840922,-151.0,0.00024457,2]
[387224156,1758661840932,-302.0,0.00024457,2]
[387224158,1758661840942,-500.0,0.00024457,2]
[387224160,1758661840952,-500.0,0.00024457,2]
[387224162,1758661840961,-500.0,0.00024457,2]
[387224164,1758661840971,-200.0,0.00024457,2]
[387224166,1758661840981,-1264.67223151,0.00024457,2]
[387224168,1758661840991,-200.0,0.00024457,2]
[387224170,1758661841000,-151.0,0.00024457,2]
[387224172,1758661841010,-151.0,0.00024457,2]
[387224174,1758661841019,-250.238836,0.00024457,2]
[387224176,1758661841029,-216.54229184,0.00024457,2]
[387224178,1758661841039,-632.46640974,0.00024459,2]
[387224180,1758661841050,-150.0,0.00024462,2]
[387224182,1758661841060,-150.0,0.00024462,2]
[387224184,1758661841070,-150.0,0.00024462,2]
[387224186,1758661841079,-500.0,0.00024462,2]
[387224188,1758661841090,-150.0,0.00024462,2]
[387224190,1758661841101,-500.0,0.00024462,2]
[387224192,1758661841111,-156.24806274,0.00024462,2]
[387224194,1758661841121,-150.0,0.00024462,2]
[387224196,1758661841131,-500.0,0.00024462,2]
[387224197,1758661841141,-500.0,0.00024462,2]
[387224198,1758661841151,-150.0,0.00024462,2]
[387224199,1758661841161,-500.0,0.00024462,2]
[387224200,1758661841171,-500.0,0.00024462,2]
[387224201,1758661841181,-150.0,0.00024462,2]
[387224202,1758661841191,-500.0,0.00024462,2]
[387224203,1758661841202,-150.0,0.00024462,2]
[387224204,1758661841212,-150.0,0.00024462,2]
[387224205,1758661841222,-150.0,0.00024462,2]
[387224207,1758661841232,-224.02304046,0.00024462,2]
[387224209,1758661841242,-500.0,0.00024462,2]
[387224210,1758661841252,-150.0,0.00024462,2]
[387224211,1758661841262,-150.0,0.00024462,2]
[387224212,1758661841272,-150.0,0.00024462,2]
[387224213,1758661841281,-150.0,0.00024462,2]
[387224214,1758661841291,-500.0,0.00024462,2]
[387224215,1758661841301,-500.0,0.00024462,2]
[387224216,1758661841311,-199.39939614,0.00024462,2]
[387224217,1758661841321,-150.0,0.00024462,2]
[387224218,1758661841330,-150.0,0.00024462,2]
[387224219,1758661841340,-150.0,0.00024462,2]
[387224220,1758661841350,-500.0,0.00024462,2]
[387224221,1758661841361,-150.0,0.00024462,2]
[387224222,1758661841370,-500.0,0.00024462,2]
[387224223,1758661841381,-150.0,0.00024462,2]
[387224224,1758661841391,-150.0,0.00024462,2]
[387224225,1758661841401,-150.0,0.00024462,2]
[387224226,1758661841411,-500.0,0.00024462,2]
[387224227,1758661841421,-150.0,0.00024462,2]
[387224228,1758661841432,-500.0,0.00024462,2]
[387224229,1758661841443,-150.0,0.00024462,2]
[387224230,1758661841453,-595.0,0.00024462,2]
[387224231,1758661841463,-500.0,0.00024462,2]
[387224232,1758661841473,-500.0,0.00024462,2]
[387224233,1758661841483,-126500.02216212,0.00024463,2]
[387224234,1758661841493,-182.34047603,0.00024463,2]
[387224235,1758661841503,-1425.0,0.00024465,2]
[387224236,1758661841513,-14443.66864691,0.00024466,2]
[387224237,1758661841524,-126500.02216212,0.00024466,2]
[387224238,1758661841534,-24149.16089988,0.00024466,2]
[387224239,1758661841544,-413.02445618,0.00024468,2]
[387224240,1758661841554,-9034.37774183,0.00024469,2]
[387224241,1758661841564,-2386.03911715,0.0002447,2]
[387224242,1758661841575,-453.2174066,0.0002447,2]
[387224243,1758661841588,-413.02445618,0.0002447,2]
[387224244,1758661841599,-513.0989689,0.00024472,2]
[387224245,1758661841609,-1000.0,0.00024472,2]
[387224246,1758661841619,-1000.0,0.00024472,2]
[387224247,1758661841629,-1000.0,0.00024472,2]
[387224248,1758661841640,-1000.0,0.00024472,2]
[387224249,1758661841651,-1000.0,0.00024472,2]
[387224250,1758661841661,-1000.0,0.00024472,2]
[387224251,1758661841671,-1000.0,0.00024472,2]
[387224252,1758661841682,-1000.0,0.00024472,2]
[387224253,1758661841692,-1000.0,0.00024472,2]
[387224254,1758661841702,-1000.0,0.00024472,2]
[387224255,1758661841712,-1000.0,0.00024472,2]
[387224256,1758661841722,-1000.0,0.00024472,2]
[387224257,1758661841732,-1000.0,0.00024472,2]
[387224258,1758661841744,-1000.0,0.00024472,2]
[387224259,1758661841754,-1000.0,0.00024472,2]
[387224260,1758661841764,-1000.0,0.00024472,2]
[387224261,1758661841775,-1000.0,0.00024472,2]
[387224262,1758661841785,-1000.0,0.00024472,2]
[387224263,1758661841795,-1000.0,0.00024472,2]
[387224264,1758661841805,-917.80422188,0.00024472,2]
[387224265,1758661841815,-4818.61865521,0.00024473,2]
[387224266,1758661841825,-13234.44493844,0.00024474,2]
[387224267,1758661841835,-976.23830396,0.00024475,2]
[387224268,1758661841845,-18671.3709135,0.00024476,2]
[387224269,1758661841856,-14443.66864691,0.00024476,2]
[387224270,1758661841866,-150.0,0.00024476,4]
[387224271,1758661841876,-1238.41064207,0.00024477,2]
[387224272,1758661841887,-453.2174066,0.00024479,2]
[387224273,1758661841897,-9264.77695865,0.00024479,2]
[387224274,1758661841907,-9264.77695865,0.0002448,2]
[387224275,1758661841917,-1581.16602432,0.00024481,2]
[387224276,1758661841927,-24149.16089988,0.00024484,2]
[387224277,1758661841938,-13234.44493844,0.00024484,2]
[387224278,1758661841948,-976.23830396,0.00024484,2]
[387224279,1758661841958,-216.54229184,0.00024485,2]
[387224280,1758661841968,-9264.77695865,0.00024487,2]
[387224281,1758661841978,-671.0,0.00024488,2]
[387224282,1758661841988,-298.91588394,0.0002449,2]
[387224283,1758661841998,-13234.44493844,0.00024492,2]
[387224284,1758661842008,-182.34047603,0.00024492,2]
[387224285,1758661842017,-13234.44493844,0.00024493,2]
[387224286,1758661842027,-632.46640974,0.00024494,2]
[387224287,1758661842037,-9264.77695865,0.00024495,2]
[387224288,1758661842047,-298.91588394,0.00024497,2]
[387224289,1758661842057,-413.02445618,0.00024498,2]
[387224290,1758661842067,-216.54229184,0.00024499,2]
[387224291,1758661842077,-1000.0,0.000245,5]
[387224292,1758661842087,-1000.0,0.000245,5]
[387224293,1758661842097,-1000.0,0.000245,4]
[387224294,1758661842107,-1000.0,0.000245,4]
[387224295,1758661842117,-1000.0,0.000245,6]
[387224296,1758661842126,-601.0,0.000245,7]
[387224297,1758661842136,-2100.0,0.000245,8]
[387224298,1758661842146,-4106.25973638,0.00024517,2]
[387224299,1758661842156,-334.5472959,0.00024522,2]
[387224300,1758661842166,-160.0,0.00024522,2]
[387224301,1758661842175,-2000.0,0.0002453,4]
[387224302,1758661842185,-671.0,0.00024545,2]
[387224303,1758661842195,-161.23326321,0.00024546,2]
[387224304,1758661842205,-684.44927122,0.00024551,2]
[387224305,1758661842214,-500.0,0.00024552,5]
[387224306,1758661842224,-3009.26299075,0.00024557,2]
[387224307,1758661842234,-2007.74974558,0.00024557,2]
[387224308,1758661842243,-1960.58917944,0.00024557,2]
[387224309,1758661842254,-2800.0,0.000246,8]
[387224310,1758661842264,-2500.0,0.000246,7]
[387224311,1758661842274,-4038.99533054,0.00024609,2]
[387224312,1758661842285,-2500.0,0.00024609,7]
[387224313,1758661842294,-2500.0,0.00024618,7]
[387224314,1758661842304,-671.0,0.00024627,2]
[387224315,1758661842314,-208.0,0.00024628,2]
[387224316,1758661842324,-1301.28,0.0002463,2]
[387224317,1758661842334,-264.6410974,0.0002463,4]
[387224318,1758661842344,-181.64311303,0.0002463,4]
[387224319,1758661842354,-262.70046482,0.0002463,4]
[387224320,1758661842364,-256.69423179,0.0002463,4]
[387224321,1758661842373,-292.41404085,0.0002463,4]
[387224322,1758661842383,-150.0,0.0002463,4]
[387224323,1758661842393,-206.21356314,0.0002463,4]
[387224324,1758661842402,-259.74365069,0.0002463,4]
[387224325,1758661842411,-150.0,0.0002463,4]
[387224326,1758661842421,-238.24150638,0.0002463,4]
[387224327,1758661842432,-235.24509397,0.0002463,4]
[387224328,1758661842441,-276.95742598,0.0002463,4]
[387224329,1758661842451,-1709.99690283,0.00024638,2]
[387224330,1758661842461,-5320.68340646,0.00024642,2]
[387224331,1758661842471,-672.45447389,0.00024647,2]
[387224332,1758661842481,-150.0,0.00024656,2]
[387224333,1758661842491,-150.0,0.00024656,2]
[387224334,1758661842501,-403.0,0.00024657,3]
[387224335,1758661842511,-400.0,0.00024657,2]
[387224336,1758661842520,-1046.75,0.00024657,3]
[387224337,1758661842530,-400.0,0.00024657,3]
[387224338,1758661842539,-400.0,0.00024657,3]
[387224339,1758661842549,-400.0,0.00024657,3]
[387224340,1758661842559,-400.0,0.00024657,3]
[387224341,1758661842568,-400.0,0.00024657,3]
[387224342,1758661842580,-400.0,0.00024657,3]
[387224343,1758661842590,-400.0,0.00024657,3]
[387224344,1758661842600,-536.53,0.00024657,3]
[387224345,1758661842610,-400.0,0.00024657,3]
[387224346,1758661842620,-400.0,0.00024657,3]
[387224347,1758661842630,-401.42760067,0.00024657,3]
[387224348,1758661842640,-451.32,0.00024657,3]
[387224349,1758661842651,-400.0,0.00024657,3]
[387224350,1758661842661,-400.0,0.00024657,3]
[387224351,1758661842672,-400.0,0.00024657,3]
[387224352,1758661842682,-400.0,0.00024657,3]
[387224353,1758661842693,-826.6,0.00024657,3]
[387224354,1758661842703,-400.0,0.00024657,3]
[387224355,1758661842713,-517.21,0.00024657,3]
[387224356,1758661842723,-400.0,0.00024657,3]
[387224357,1758661842733,-452.63,0.00024657,3]
[387224358,1758661842743,-729.15,0.00024657,3]
[387224359,1758661842753,-672.04,0.00024657,3]
[387224360,1758661842763,-400.0,0.00024657,3]
[387224361,1758661842773,-507.29,0.00024657,3]
[387224362,1758661842783,-415.57,0.00024657,3]
[387224363,1758661842792,-400.0,0.00024657,3]
[387224364,1758661842802,-788.96,0.00024657,3]
[387224365,1758661842812,-400.0,0.00024657,3]
[387224366,1758661842822,-500.0,0.00024657,3]
[387224367,1758661842832,-500.0,0.00024657,3]
[387224368,1758661842842,-500.0,0.00024657,3]
[387224369,1758661842852,-500.0,0.00024657,3]
[387224370,1758661842862,-500.0,0.00024657,3]
[387224371,1758661842872,-500.0,0.00024657,3]
[387224372,1758661842882,-305.92057755,0.00024657,3]
[387224373,1758661842891,-462.73,0.00024657,3]
[387224374,1758661842901,-400.0,0.00024657,3]
[387224375,1758661842912,-606.38,0.00024657,3]
[387224376,1758661842922,-446.71,0.00024657,3]
[387224377,1758661842931,-400.0,0.00024657,3]
[387224378,1758661842941,-400.0,0.00024657,3]
[387224379,1758661842951,-400.0,0.00024657,3]
[387224380,1758661842960,-400.0,0.00024657,3]
[387224381,1758661842970,-400.0,0.00024657,3]
[387224382,1758661842980,-866.96,0.00024657,3]
[387224383,1758661842990,-552.42,0.00024657,3]
[387224384,1758661843000,-400.0,0.00024657,3]
[387224385,1758661843010,-400.0,0.00024657,3]
[387224386,1758661843020,-800.41,0.00024657,3]
[387224387,1758661843030,-400.0,0.00024657,3]
[387224388,1758661843039,-400.0,0.00024657,3]
[387224389,1758661843050,-400.0,0.00024657,3]
[387224390,1758661843060,-1261.22,0.00024657,3]
[387224391,1758661843070,-400.0,0.00024657,3]
[387224392,1758661843080,-400.0,0.00024657,3]
[387224393,1758661843090,-400.0,0.00024657,3]
[387224394,1758661843100,-400.0,0.00024657,3]
[387224395,1758661843110,-400.0,0.00024657,3]
[387224396,1758661843120,-400.0,0.00024657,3]
[387224397,1758661843130,-400.0,0.00024657,3]
[387224398,1758661843140,-400.0,0.00024657,3]
[387224399,1758661843150,-400.0,0.00024657,3]
[387224400,1758661843160,-602.86,0.00024657,3]
[387224401,1758661843170,-400.0,0.00024657,3]
[387224402,1758661843180,-400.0,0.00024657,3]
[387224403,1758661843189,-417.00837464,0.00024657,3]
[387224404,1758661843199,-400.0,0.00024657,3]
[387224405,1758661843209,-400.0,0.00024657,3]
[387224406,1758661843219,-400.0,0.00024657,3]
[387224407,1758661843228,-472.7,0.00024657,3]
[387224408,1758661843238,-400.0,0.00024657,3]
[387224409,1758661843248,-400.0,0.00024657,3]
[387224410,1758661843258,-400.0,0.00024657,3]